bitfinex-derivatives/quotes_BTCF0:USTF0_20250729
["timestamp","ask_amount","ask_price","bid_price","bid_amount"]
[1753819174837,0.66043857,117650.0,117640.0,0.5664192]
[1753819176426,0.66043857,117650.0,117640.0,0.39638]
[1753819177032,0.5072437,117630.0,117620.0,0.66852033]
[1753819177236,0.5534837,117630.0,117620.0,1.61858925]
[1753819177843,0.5534837,117630.0,117620.0,1.36064033]
[1753819178136,0.3219837,117630.0,117620.0,1.61958925]
[1753819178330,0.3219837,117630.0,117620.0,1.36264033]
[1753819178532,0.4299337,117630.0,117620.0,1.62058925]
[1753819178838,0.5534837,117630.0,117620.0,0.58550043]
[1753819179238,0.5534837,117630.0,117620.0,1.27798043]
[1753819179433,0.5534837,117630.0,117620.0,1.53592935]
[1753819179735,0.52717925,117630.0,117620.0,0.3238]
[1753819179941,0.83136817,117630.0,117620.0,0.74305]
[1753819180142,0.57341925,117630.0,117620.0,0.97077]
[1753819180441,0.57341925,117630.0,117620.0,1.2154181]
[1753819181037,0.83136817,117630.0,117620.0,1.09086]
[1753819181236,0.57341925,117630.0,117620.0,0.002]
[1753819181430,0.83136817,117630.0,117620.0,0.002]
[1753819182235,0.57341925,117630.0,117620.0,0.002]
[1753819182637,0.83136817,117630.0,117620.0,0.002]
[1753819182837,1.00140018,117630.0,117620.0,0.002]
[1753819183940,0.5524626,117610.0,117600.0,1.258787]
[1753819184339,0.5524626,117610.0,117600.0,1.51673592]
[1753819184841,0.5524626,117610.0,117600.0,1.258787]
[1753819184842,0.5024826,117610.0,117600.0,1.258787]
[1753819185044,0.5024826,117610.0,117600.0,1.51973592]
[1753819185341,0.1700826,117610.0,117600.0,1.51957592]
[1753819185739,0.2125924,117620.0,117610.0,0.5650925]
[1753819186050,0.2125924,117620.0,117610.0,0.82304142]
[1753819187242,0.5516523,117630.0,117620.0,0.5650781]
[1753819187443,0.2125811,117630.0,117620.0,1.51734702]
[1753819188450,0.4175872,117640.0,117630.0,0.5650637]
[1753819188747,0.5516272,117640.0,117630.0,0.82301262]
[1753819188943,0.6799672,117640.0,117630.0,1.2596637]
[1753819189144,0.68821919,117640.0,117630.0,1.2596637]
[1753819189840,0.4786537,117630.0,117620.0,0.002]
[1753819190039,0.81038262,117630.0,117620.0,0.002]
[1753819190244,0.81038262,117630.0,117620.0,0.1710681]
[1753819190540,0.5024537,117630.0,117620.0,0.3291281]
[1753819190847,0.4240937,117630.0,117620.0,1.51838702]
[1753819191142,0.5524337,117630.0,117620.0,1.51838702]
[1753819191446,0.5544337,117630.0,117620.0,1.51838702]
[1753819191647,0.5544337,117630.0,117620.0,1.2604381]
[1753819192251,0.5544337,117630.0,117620.0,1.51838702]
[1753819193150,0.5544337,117630.0,117620.0,0.5650781]
[1753819193346,0.552448,117620.0,117610.0,0.15507]
[1753819193645,0.552448,117620.0,117610.0,1.1417625]
[1753819193846,0.552448,117620.0,117610.0,1.2120525]
[1753819194054,0.424108,117620.0,117610.0,1.47000142]
[1753819194242,0.18997059,117620.0,117610.0,1.47000142]
[1753819194449,0.170068,117620.0,117610.0,1.47000142]
[1753819194949,0.170068,117620.0,117610.0,1.51928142]
[1753819195141,0.290068,117620.0,117610.0,1.51928142]
[1753819195345,0.393728,117620.0,117610.0,1.51928142]
[1753819196154,0.424108,117620.0,117610.0,1.51928142]
[1753819196355,0.474088,117620.0,117610.0,1.51928142]
[1753819196552,0.474088,117620.0,117610.0,0.82304142]
[1753819196755,0.57234787,117620.0,117610.0,0.32472]
[1753819196942,0.57234787,117620.0,117610.0,1.1907225]
[1753819197147,0.57234787,117620.0,117610.0,0.86258]
[1753819197148,0.83029679,117620.0,117610.0,0.86258]
[1753819197349,0.57234787,117620.0,117610.0,1.0326626]
[1753819197548,0.57234787,117620.0,117610.0,1.1029526]
[1753819198054,0.57234787,117620.0,117610.0,1.09093]
[1753819198256,0.26657238,117620.0,117610.0,1.2610126]
[1753819198446,0.552448,117620.0,117610.0,1.2610126]
[1753819199046,0.552448,117620.0,117610.0,1.2617726]
[1753819199253,0.320448,117620.0,117610.0,1.51972152]
[1753819199449,0.170068,117620.0,117610.0,1.51972152]
[1753819199753,0.170068,117620.0,117610.0,0.5650926]
[1753819199954,0.170068,117620.0,117610.0,1.52016152]
[1753819200357,0.170068,117620.0,117610.0,0.82304152]
[1753819200757,0.2550949,117630.0,117620.0,0.5650782]
[1753819200956,0.27500822,117630.0,117620.0,0.82302712]
[1753819201255,0.39500822,117630.0,117620.0,0.82302712]
[1753819201451,0.49866822,117630.0,117620.0,0.82302712]
[1753819201663,0.49866822,117630.0,117620.0,0.39501]
[1753819201865,0.52904822,117630.0,117620.0,0.5650782]
[1753819202058,0.52904822,117630.0,117620.0,0.39501]
[1753819202259,0.58102822,117630.0,117620.0,0.5650782]
[1753819203260,0.58202822,117630.0,117620.0,0.39501]
[1753819203571,0.66038822,117630.0,117620.0,0.39501]
[1753819203778,0.91833714,117630.0,117620.0,1.09189]
[1753819203959,0.66038822,117630.0,117620.0,1.1917482]
[1753819204156,0.4868349,117630.0,117620.0,1.2620382]
[1753819204366,0.5904949,117630.0,117620.0,1.2620382]
[1753819204765,0.5904949,117630.0,117620.0,1.09197]
[1753819204766,0.6404749,117630.0,117620.0,1.09197]
[1753819205068,0.6404749,117630.0,117620.0,1.2620382]
[1753819208769,0.6404749,117630.0,117620.0,1.09197]
[1753819208967,0.6404749,117630.0,117620.0,1.2620383]
[1753819209866,0.6404749,117630.0,117620.0,1.51998722]
[1753819210069,0.6404749,117630.0,117620.0,1.2620383]
[1753819211573,0.6404749,117630.0,117620.0,1.51998722]
[1753819212461,0.2580949,117630.0,117620.0,1.51998722]
[1753819214571,0.5016949,117630.0,117620.0,1.2620383]
[1753819214780,0.5494349,117630.0,117620.0,1.2620383]
[1753819215265,0.5016949,117630.0,117620.0,1.2620383]
[1753819215461,0.5016949,117630.0,117620.0,1.51998722]
[1753819217371,0.5016949,117630.0,117620.0,1.2620383]
[1753819217774,0.5016949,117630.0,117620.0,1.51998722]
[1753819220570,0.5016949,117630.0,117620.0,1.2620383]
[1753819220771,0.5016949,117630.0,117620.0,1.51998722]
[1753819221567,0.3718549,117630.0,117620.0,1.51998722]
[1753819221772,0.003,117630.0,117620.0,1.51998722]
[1753819222172,0.003,117630.0,117620.0,1.52857702]
[1753819222576,0.1730539,117630.0,117620.0,1.51998722]
[1753819222774,0.003,117630.0,117620.0,1.51998722]
[1753819223475,0.1730539,117630.0,117620.0,1.51998722]
[1753819228571,0.003,117630.0,117620.0,1.51998722]
[1753819229979,0.1730539,117630.0,117620.0,1.51998722]
[1753819230877,0.5459139,117630.0,117620.0,1.2608783]
[1753819231179,0.5459139,117630.0,117620.0,1.2614784]
[1753819231569,0.1730539,117630.0,117620.0,1.51938732]
[1753819231773,0.003,117630.0,117620.0,1.51938732]
[1753819234079,0.1730539,117630.0,117620.0,1.51938732]
[1753819234577,0.003,117630.0,117620.0,1.51938732]
[1753819234980,0.1730539,117630.0,117620.0,1.51938732]
[1753819236282,0.003,117630.0,117620.0,1.51938732]
[1753819240877,0.003,117630.0,117620.0,0.82302732]
[1753819241083,0.003,117630.0,117620.0,1.51818732]
[1753819248874,0.0625,117630.0,117620.0,1.51818732]
[1753819254892,0.0625,117630.0,117620.0,1.59454497]
[1753819255893,0.0625,117630.0,117620.0,1.51818732]
[1753819258092,0.6050239,117630.0,117620.0,1.0666984]
[1753819258395,0.6050239,117630.0,117620.0,0.85166]
[1753819258593,0.6050239,117630.0,117620.0,1.0217283]
[1753819258896,0.6050239,117630.0,117620.0,1.1393583]
[1753819259894,0.6050239,117630.0,117620.0,1.46955722]
[1753819260595,0.0625,117630.0,117620.0,1.46955722]
[1753819262199,0.4896851,117660.0,117650.0,0.568165]
[1753819262391,0.6169517,117660.0,117650.0,1.51955392]
[1753819263494,0.6219517,117660.0,117650.0,1.51955392]
[1753819264096,0.6024951,117660.0,117650.0,1.51955392]
[1753819264296,0.62595531,117660.0,117650.0,1.51955392]
[1753819264995,0.6064951,117660.0,117650.0,1.51955392]
[1753819267601,0.009,117660.0,117650.0,1.51955392]
[1753819269400,0.02515,117670.0,117660.0,0.1700105]
[1753819269701,0.02515,117670.0,117660.0,0.82609942]
[1753819269894,0.07405,117670.0,117660.0,0.82609942]
[1753819270599,0.07805,117670.0,117660.0,0.82609942]
[1753819270997,0.33655,117670.0,117660.0,0.82609942]
[1753819271698,0.02915,117670.0,117660.0,0.82609942]
[1753819272404,0.03315,117670.0,117660.0,0.82609942]
[1753819273990,0.0807,117670.0,117660.0,0.82609942]
[1753819276002,0.0807,117670.0,117660.0,0.83455085]
[1753819277198,0.03315,117670.0,117660.0,0.85327243]
[1753819284609,0.2031455,117670.0,117660.0,0.85327243]
[1753819285111,0.2506955,117670.0,117660.0,0.85327243]
[1753819285408,0.0807,117670.0,117660.0,0.844821]
[1753819286403,0.03315,117670.0,117660.0,0.844821]
[1753819288003,0.2932303,117690.0,117680.0,0.2951511]
[1753819288204,0.4313922,117700.0,117690.0,0.1699666]
[1753819288407,0.589642,117700.0,117690.0,0.81281552]
[1753819289113,0.3654722,117700.0,117690.0,0.81281552]
[1753819289313,0.4696622,117700.0,117690.0,0.81281552]
[1753819289707,0.5471422,117700.0,117690.0,0.81281552]
[1753819289912,0.5501422,117700.0,117690.0,0.5548666]
[1753819290113,0.5501422,117700.0,117690.0,0.81281552]
[1753819290316,0.56947733,117700.0,117690.0,0.81281552]
[1753819290611,0.5501422,117700.0,117690.0,0.81281552]
[1753819292809,0.1729522,117700.0,117690.0,0.81281552]
[1753819293008,0.1729522,117700.0,117690.0,0.76628552]
[1753819293214,0.4726622,117700.0,117690.0,0.81281552]
[1753819294615,0.5501422,117700.0,117690.0,0.81281552]
[1753819310223,0.003,117700.0,117690.0,0.81281552]
[1753819311225,0.2996,117720.0,117710.0,0.5569967]
[1753819311423,0.2996,117720.0,117710.0,1.50314562]
[1753819312020,0.4695222,117720.0,117710.0,1.51167029]
[1753819312532,0.4695222,117720.0,117710.0,1.31261053]
[1753819312722,0.5431522,117720.0,117710.0,1.57055945]
[1753819313928,0.5431522,117720.0,117710.0,0.88235945]
[1753819314130,0.5431522,117720.0,117710.0,1.57043945]
[1753819314828,0.37323,117720.0,117710.0,1.57043945]
[1753819315032,0.5431522,117720.0,117710.0,1.57043945]
[1753819315935,0.37323,117720.0,117710.0,1.57043945]
[1753819316231,0.5431522,117720.0,117710.0,1.57043945]
[1753819317329,0.37323,117720.0,117710.0,1.57043945]
[1753819317529,0.2996,117720.0,117710.0,1.57043945]
[1753819318735,0.4695222,117720.0,117710.0,1.57043945]
[1753819319127,0.4725222,117720.0,117710.0,1.57043945]
[1753819320233,0.4725222,117720.0,117710.0,1.31249053]
[1753819320435,0.5461522,117720.0,117710.0,1.57043945]
[1753819321428,0.5461522,117720.0,117710.0,1.1960367]
[1753819321833,0.5461522,117720.0,117710.0,1.45398562]
[1753819322035,0.5461522,117720.0,117710.0,1.50274562]
[1753819324337,0.5461522,117720.0,117710.0,1.45410562]
[1753819324837,0.5441522,117720.0,117710.0,1.45410562]
[1753819325036,0.5441522,117720.0,117710.0,1.50286562]
[1753819325443,0.5441522,117720.0,117710.0,1.2449167]
[1753819325638,0.5431522,117720.0,117710.0,1.2449167]
[1753819326741,0.5431522,117720.0,117710.0,1.50286562]
[1753819327535,0.5431522,117720.0,117710.0,1.2449167]
[1753819327835,0.5431522,117720.0,117710.0,1.39063562]
[1753819328036,0.5431522,117720.0,117710.0,1.2448367]
[1753819330739,0.5431522,117720.0,117710.0,1.50278562]
[1753819336752,0.5431522,117720.0,117710.0,1.33284892]
[1753819337247,0.5431522,117720.0,117710.0,1.0749]
[1753819337649,0.5317066,117710.0,117700.0,0.33531]
[1753819337844,0.5317066,117710.0,117700.0,1.07011]
[1753819339151,0.5317066,117710.0,117700.0,1.07111]
[1753819339654,0.5317066,117710.0,117700.0,1.2410611]
[1753819340046,0.5317066,117710.0,117700.0,1.2420611]
[1753819340458,0.5317066,117710.0,117700.0,1.244061]
[1753819340654,0.5317066,117710.0,117700.0,1.245061]
[1753819341156,0.5317066,117710.0,117700.0,1.242061]
[1753819341456,0.5317066,117710.0,117700.0,1.244061]
[1753819341660,0.5317066,117710.0,117700.0,0.26499]
[1753819341955,0.55090996,117710.0,117700.0,1.02647]
[1753819342453,0.55090996,117710.0,117700.0,0.18674]
[1753819342657,0.55090996,117710.0,117700.0,0.8739]
[1753819342853,0.55090996,117710.0,117700.0,0.9813]
[1753819343153,0.80885888,117710.0,117700.0,0.83997]
[1753819343355,0.97877889,117710.0,117700.0,0.003]
[1753819343555,0.5317355,117690.0,117680.0,0.38299]
[1753819343859,0.5317644,117670.0,117660.0,1.40802]
[1753819344053,0.5317644,117670.0,117660.0,1.02247]
[1753819344858,0.5317644,117670.0,117660.0,0.33531]
[1753819345058,0.78971332,117670.0,117660.0,0.33931]
[1753819345255,0.78971332,117670.0,117660.0,0.07656]
[1753819345457,0.79799813,117670.0,117660.0,0.07656]
[1753819345960,0.96797413,117670.0,117660.0,0.004]
[1753819346160,0.96797413,117670.0,117660.0,0.008]
[1753819346345,1.21797413,117670.0,117660.0,1e-07]
[1753819346951,0.042503,117660.0,117630.0,0.79746]
[1753819347149,0.4112977,117640.0,117630.0,1.07027]
[1753819347563,0.5304077,117640.0,117630.0,1.07027]
[1753819347758,0.5304077,117640.0,117630.0,1.2403222]
[1753819347967,0.5304077,117640.0,117630.0,1.2453222]
[1753819348662,0.5304077,117640.0,117630.0,1.2403222]
[1753819348863,0.5304077,117640.0,117630.0,1.2453222]
[1753819349361,0.5304077,117640.0,117630.0,1.2513222]
[1753819349558,0.5304077,117640.0,117630.0,1.50927112]
[1753819349956,0.5304077,117640.0,117630.0,1.2513222]
[1753819354764,0.5304077,117640.0,117630.0,1.2514822]
[1753819354964,0.5304077,117640.0,117630.0,0.5640422]
[1753819355163,0.1700377,117640.0,117630.0,1.2514822]
[1753819355473,0.1700377,117640.0,117630.0,1.50943112]
[1753819357867,0.1700376,117640.0,117630.0,1.63696362]
[1753819358559,0.1700376,117640.0,117630.0,1.59445162]
[1753819359869,0.2158876,117640.0,117630.0,1.59445162]
[1753819360270,0.2920276,117640.0,117630.0,1.08143]
[1753819360572,0.4611076,117640.0,117630.0,1.50943102]
[1753819361066,0.4611076,117640.0,117630.0,1.08143]
[1753819361270,0.4611076,117640.0,117630.0,1.50943102]
[1753819361974,0.1700376,117640.0,117630.0,1.50943102]
[1753819365186,0.4617076,117640.0,117630.0,1.2514821]
[1753819365380,0.4617076,117640.0,117630.0,1.50943102]
[1753819365983,0.3684276,117640.0,117630.0,1.50943102]
[1753819366587,0.2995076,117640.0,117630.0,1.50943102]
[1753819366980,0.3684276,117640.0,117630.0,1.50943102]
[1753819367582,0.4617076,117640.0,117630.0,1.50943102]
[1753819368592,0.2995076,117640.0,117630.0,1.50943102]
[1753819368787,0.1700376,117640.0,117630.0,1.50943102]
[1753819369087,0.2671276,117640.0,117630.0,1.50943102]
[1753819369288,0.3684276,117640.0,117630.0,1.50943102]
[1753819369684,0.4617076,117640.0,117630.0,1.50943102]
[1753819371192,0.3684276,117640.0,117630.0,1.50943102]
[1753819372189,0.3684276,117640.0,117630.0,1.2514821]
[1753819372395,0.2995076,117640.0,117630.0,1.50943102]
[1753819372791,0.2995076,117640.0,117630.0,1.2514821]
[1753819372992,0.3684276,117640.0,117630.0,1.50943102]
[1753819373495,0.3684276,117640.0,117630.0,1.50843102]
[1753819374300,0.38793137,117640.0,117630.0,1.50843102]
[1753819374494,0.38793137,117640.0,117630.0,1.50743102]
[1753819375593,0.38793137,117640.0,117630.0,0.81999102]
[1753819375793,0.80948029,117640.0,117630.0,1.03183]
[1753819376098,0.80948029,117640.0,117630.0,0.96181]
[1753819376293,0.80948029,117640.0,117630.0,1.03527]
[1753819376594,0.55153137,117640.0,117630.0,1.08295]
[1753819377297,0.55153137,117640.0,117630.0,1.2520019]
[1753819377499,0.55153137,117640.0,117630.0,1.08195]
[1753819378100,0.80948029,117640.0,117630.0,0.007]
[1753819378594,0.80948029,117640.0,117630.0,0.005]
[1753819379297,0.80948029,117640.0,117630.0,0.004]
[1753819380798,0.80936378,117640.0,117630.0,0.004]
[1753819380995,0.5320563,117620.0,117610.0,0.38643]
[1753819381194,0.55144356,117620.0,117610.0,1.07395]
[1753819381998,0.55144356,117620.0,117610.0,1.2480307]
[1753819382298,0.31892356,117620.0,117610.0,1.51097962]
[1753819382600,0.55144356,117620.0,117610.0,1.51097962]
[1753819382997,0.18945356,117620.0,117610.0,1.51101962]
[1753819383403,0.23655356,117620.0,117610.0,1.51101962]
[1753819383603,0.31892356,117620.0,117610.0,1.51101962]
[1753819383805,0.38784356,117620.0,117610.0,0.82345962]
[1753819384001,0.38784356,117620.0,117610.0,1.51101962]
[1753819384202,0.48112356,117620.0,117610.0,1.51101962]
[1753819384504,0.5320563,117620.0,117610.0,1.51101962]
[1753819386098,0.54066426,117620.0,117610.0,1.51101962]
[1753819386298,0.5320563,117620.0,117610.0,1.51101962]
[1753819388505,0.5406722,117620.0,117610.0,1.51101962]
[1753819388801,0.5320563,117620.0,117610.0,1.51101962]
[1753819390208,0.5320563,117620.0,117610.0,1.08299]
[1753819390408,0.5320563,117620.0,117610.0,1.2053908]
[1753819390798,0.5320563,117620.0,117610.0,1.2530708]
[1753819399511,0.5320563,117620.0,117610.0,1.51101972]
[1753819400018,0.4617363,117620.0,117610.0,1.51101972]
[1753819400518,0.5333063,117620.0,117610.0,1.51101972]
[1753819402216,0.5333063,117620.0,117610.0,1.34093892]
[1753819402417,0.5333063,117620.0,117610.0,1.08299]
[1753819402722,0.5333063,117620.0,117610.0,1.2530707]
[1753819402921,0.5333063,117620.0,117610.0,1.2530704]
[1753819403520,0.5333063,117620.0,117610.0,1.08299]
[1753819403825,0.5333063,117620.0,117610.0,1.2530704]
[1753819404624,0.5333063,117620.0,117610.0,0.82345932]
[1753819404820,0.2995363,117620.0,117610.0,1.51089932]
[1753819405129,0.1700663,117620.0,117610.0,1.51089932]
[1753819405431,0.1700663,117620.0,117610.0,1.5720213]
[1753819407822,0.1700663,117620.0,117610.0,1.31407238]
[1753819408227,0.2199063,117620.0,117610.0,1.5720213]
[1753819409627,0.1700663,117620.0,117610.0,1.31407238]
[1753819409828,0.1700663,117620.0,117610.0,1.5720213]
[1753819412224,0.2976084,117630.0,117620.0,0.3240263]
[1753819412422,0.2125769,117630.0,117620.0,0.8675272]
[1753819412725,0.1700629,117630.0,117620.0,0.80640522]
[1753819412926,0.2975827,117640.0,117630.0,0.3938319]
[1753819413135,0.2550703,117640.0,117630.0,1.55499315]
[1753819414022,0.3049103,117640.0,117630.0,1.55499315]
[1753819415030,0.3049103,117640.0,117630.0,1.55599315]
[1753819415423,0.3049103,117640.0,117630.0,1.49475082]
[1753819415634,0.3049103,117640.0,117630.0,1.49575082]
[1753819417230,0.2550703,117640.0,117630.0,1.44709082]
[1753819417425,0.6146803,117640.0,117630.0,1.49575082]
[1753819418432,0.5275703,117640.0,117630.0,1.49575082]
[1753819418635,0.6146803,117640.0,117630.0,1.49575082]
[1753819422234,0.5431103,117640.0,117630.0,1.49575082]
[1753819422436,0.2550703,117640.0,117630.0,1.49575082]
[1753819424435,0.5370703,117640.0,117630.0,1.2378019]
[1753819424636,0.6051203,117640.0,117630.0,1.49575082]
[1753819425435,0.6051203,117640.0,117630.0,0.80839082]
[1753819425635,0.6051203,117640.0,117630.0,1.49555082]
[1753819428926,0.3778503,117640.0,117630.0,1.49555082]
[1753819429738,0.4512103,117640.0,117630.0,1.49555082]
[1753819434340,0.4512103,117640.0,117630.0,1.55679315]
[1753819435242,0.4512103,117640.0,117630.0,1.49555082]
[1753819435443,0.5370703,117640.0,117630.0,1.49555082]
[1753819435743,0.6051203,117640.0,117630.0,0.76217]
[1753819435938,0.86306922,117640.0,117630.0,0.17768]
[1753819436139,0.86306922,117640.0,117630.0,0.002]
[1753819436939,1.03308522,117640.0,117630.0,0.002]
[1753819438243,1.05233433,117640.0,117630.0,0.002]
[1753819440646,1.73937433,117640.0,117630.0,1e-07]
[1753819441647,1.56935833,117640.0,117630.0,1e-07]
[1753819444046,0.2164003,117610.0,117600.0,0.00407]
[1753819444247,0.77988922,117610.0,117600.0,0.00407]
[1753819444454,0.77988922,117610.0,117600.0,0.3484047]
[1753819444645,0.77988922,117610.0,117600.0,0.5033147]
[1753819444841,0.77988922,117610.0,117600.0,0.5498647]
[1753819444842,0.5219403,117610.0,117600.0,0.5498647]
[1753819445050,0.5219403,117610.0,117600.0,0.5538647]
[1753819445353,0.53034985,117610.0,117600.0,0.38377]
[1753819445548,0.53034985,117610.0,117600.0,0.33722]
[1753819445953,0.53034985,117610.0,117600.0,0.34122]
[1753819449558,0.53034985,117610.0,117600.0,0.38777]
[1753819452360,0.53034985,117610.0,117600.0,0.34122]
[1753819452862,0.53034985,117610.0,117600.0,0.08364]
[1753819453058,0.53034985,117610.0,117600.0,0.18631]
[1753819453461,0.78829877,117610.0,117600.0,0.01207]
[1753819453661,0.53034985,117610.0,117600.0,0.01207]
[1753819453861,0.78829877,117610.0,117600.0,0.01207]
[1753819454262,0.53034985,117610.0,117600.0,0.01207]
[1753819454462,0.78829877,117610.0,117600.0,0.00507]
[1753819454663,0.78829877,117610.0,117600.0,0.00607]
[1753819455562,0.53034985,117610.0,117600.0,0.00607]
[1753819455762,0.53034985,117610.0,117600.0,0.31559]
[1753819456062,0.53034985,117610.0,117600.0,0.07255]
[1753819456264,0.53034985,117610.0,117600.0,0.36332]
[1753819457759,0.53034985,117610.0,117600.0,0.31559]
[1753819458165,0.78829877,117610.0,117600.0,0.2001]
[1753819458365,0.78829877,117610.0,117600.0,0.16898]
[1753819458664,0.53034985,117610.0,117600.0,0.16898]
[1753819459355,0.53034985,117610.0,117600.0,0.00607]
[1753819459763,0.78829877,117610.0,117600.0,0.00607]
[1753819460970,0.6480439,117570.0,117560.0,1.2145221]
[1753819461161,0.6480439,117570.0,117560.0,0.35725]
[1753819461363,0.6480439,117570.0,117560.0,1.04437]
[1753819461661,0.90599282,117570.0,117560.0,0.06648]
[1753819461861,0.6480439,117570.0,117560.0,0.16291]
[1753819462559,0.6480439,117570.0,117560.0,0.30952]
[1753819463069,0.6480439,117570.0,117560.0,0.4826723]
[1753819463269,0.6480439,117570.0,117560.0,0.5354023]
[1753819463669,0.6480439,117570.0,117560.0,0.5324023]
[1753819463869,0.65653958,117570.0,117560.0,0.5324023]
[1753819464066,0.65653958,117570.0,117560.0,0.5284023]
[1753819464366,0.65653958,117570.0,117560.0,0.1711523]
[1753819464569,0.648095,117550.0,117540.0,0.5274282]
[1753819465774,0.648095,117550.0,117540.0,1.47257712]
[1753819466874,0.648095,117550.0,117540.0,1.47457712]
[1753819467074,0.648095,117550.0,117540.0,1.47757712]
[1753819470173,0.648095,117550.0,117540.0,0.79037712]
[1753819470373,0.648095,117550.0,117540.0,1.47765712]
[1753819470978,0.648095,117550.0,117540.0,1.2197082]
[1753819471177,0.648095,117550.0,117540.0,1.47765712]
[1753819472677,0.648095,117550.0,117540.0,0.79037712]
[1753819472878,0.648095,117550.0,117540.0,1.47765712]
[1753819475075,0.1701668,117550.0,117540.0,1.47765712]
[1753819476386,0.2177368,117550.0,117540.0,1.2197082]
[1753819476588,0.2177368,117550.0,117540.0,1.47765712]
[1753819477793,0.2177368,117550.0,117540.0,1.2197082]
[1753819478091,0.3664668,117550.0,117540.0,1.47765712]
[1753819479590,0.3664668,117550.0,117540.0,1.2197082]
[1753819479888,0.3664668,117550.0,117540.0,1.47765712]
[1753819480887,0.3664668,117550.0,117540.0,1.2197082]
[1753819481088,0.4453368,117550.0,117540.0,1.47770012]
[1753819482087,0.4453368,117550.0,117540.0,1.30751892]
[1753819482291,0.5171268,117550.0,117540.0,1.30751892]
[1753819484390,0.5171268,117550.0,117540.0,1.47770012]
[1753819485590,0.5171268,117550.0,117540.0,1.30751892]
[1753819485791,0.5171268,117550.0,117540.0,1.47770012]
[1753819485992,0.5171268,117550.0,117540.0,1.2197512]
[1753819486292,0.1701668,117550.0,117540.0,1.47770012]
[1753819486489,0.63952572,117550.0,117540.0,0.005]
[1753819486791,0.76531572,117550.0,117540.0,0.1738]
[1753819486987,0.76531572,117550.0,117540.0,0.07385]
[1753819487184,0.78467436,117550.0,117540.0,0.005]
[1753819488287,1.47199436,117550.0,117540.0,0.003]
[1753819488591,0.3133712,117540.0,117530.0,0.0001]
[1753819488793,0.76533012,117540.0,117530.0,0.0001]
[1753819489194,0.76533012,117540.0,117530.0,0.10005]
[1753819489392,0.76533012,117540.0,117530.0,0.0001]
[1753819489692,0.78469875,117540.0,117530.0,0.0001]
[1753819489891,0.78469875,117540.0,117530.0,0.0011]
[1753819490296,0.78469875,117540.0,117530.0,0.0021]
[1753819491700,0.76533012,117540.0,117530.0,0.0021]
[1753819491996,0.78470142,117540.0,117530.0,0.0021]
[1753819496494,0.5267525,117540.0,117530.0,0.0021]
[1753819496700,0.78470142,117540.0,117530.0,0.0021]
[1753819498203,0.78470142,117540.0,117530.0,0.0011]
[1753819499794,1.47210142,117540.0,117530.0,0.0011]
[1753819501195,0.5074245,117510.0,117500.0,0.37297]
[1753819501399,0.5074245,117510.0,117500.0,0.543209]
[1753819501991,0.5074245,117510.0,117500.0,0.37297]
[1753819502196,0.76537342,117510.0,117500.0,0.37297]
[1753819502398,0.5074245,117510.0,117500.0,0.37997]
[1753819502595,0.76537342,117510.0,117500.0,0.37997]
[1753819502998,0.5074245,117510.0,117500.0,0.37997]
[1753819503199,0.51578268,117510.0,117500.0,0.37997]
[1753819503503,0.7737316,117510.0,117500.0,0.25509]
[1753819503700,0.7737316,117510.0,117500.0,0.01204]
[1753819504001,0.2978525,117470.0,117460.0,0.55575751]
[1753819504197,0.2978525,117470.0,117460.0,0.81370643]
[1753819504403,0.5298333,117480.0,117470.0,0.3152525]
[1753819504592,0.5298333,117480.0,117470.0,0.5382125]
[1753819505403,0.5926133,117480.0,117470.0,0.5382125]
[1753819506098,0.5926133,117480.0,117470.0,0.5392125]
[1753819506406,0.5926133,117480.0,117470.0,0.36893]
[1753819507199,0.85056222,117480.0,117470.0,0.10038]
[1753819507401,0.85056222,117480.0,117470.0,0.24592]
[1753819507594,0.85056222,117480.0,117470.0,0.001]
[1753819507899,1.53904222,117480.0,117470.0,0.001]
[1753819508298,1.53904222,117480.0,117420.0,0.09995]
[1753819508299,0.3171822,117440.0,117420.0,0.09995]
[1753819508498,0.5501267,117430.0,117400.0,0.7977003]
[1753819508800,0.4447748,117420.0,117410.0,0.36793]
[1753819508999,0.57645042,117420.0,117410.0,0.36793]
[1753819509196,0.57645042,117420.0,117410.0,0.5382994]
[1753819509396,0.11605562,117420.0,117410.0,0.5382994]
[1753819509602,0.06889562,117420.0,117410.0,1.21658432]
[1753819509804,0.3661014,117450.0,117440.0,0.5382559]
[1753819510105,0.4447314,117450.0,117440.0,0.5382559]
[1753819510300,0.5075114,117450.0,117440.0,0.36793]
[1753819510507,0.77396228,117450.0,117440.0,0.24492]
[1753819510708,0.4447604,117430.0,117420.0,1.05741]
[1753819510894,0.5075404,117430.0,117420.0,0.36793]
[1753819511100,0.5075404,117430.0,117420.0,0.31917]
[1753819511305,0.3372,117420.0,117410.0,1.221891]
[1753819511503,0.5927282,117430.0,117420.0,0.4895248]
[1753819511702,0.507552,117430.0,117420.0,0.5382848]
[1753819511905,0.19579,117430.0,117420.0,0.5382848]
[1753819512101,0.04716,117430.0,117420.0,0.5382848]
[1753819512300,0.4447564,117440.0,117430.0,0.06885]
[1753819512506,0.5075364,117440.0,117430.0,0.1688]
[1753819512700,0.5075364,117440.0,117430.0,0.1703402]
[1753819512904,0.5075364,117440.0,117430.0,0.4895102]
[1753819513103,0.4447564,117440.0,117430.0,0.5382702]
[1753819513304,0.4447457,117440.0,117430.0,0.4152602]
[1753819513498,0.3372,117440.0,117430.0,0.5382702]
[1753819513706,0.002,117440.0,117430.0,0.5382702]
[1753819513906,0.002,117440.0,117430.0,0.96280525]
[1753819514111,0.002,117440.0,117430.0,0.5382702]
[1753819514411,0.002,117440.0,117430.0,1.2321502]
[1753819514618,0.002,117440.0,117430.0,0.5382702]
[1753819514913,0.002,117440.0,117430.0,1.2321102]
[1753819515113,0.003,117440.0,117430.0,1.2321102]
[1753819515314,0.05281,117440.0,117430.0,1.2321102]
[1753819515508,0.4434457,117440.0,117430.0,1.2321102]
[1753819515710,0.4404457,117440.0,117430.0,1.2321102]
[1753819516418,0.27012,117440.0,117430.0,1.2321102]
[1753819517505,0.1949,117440.0,117430.0,1.2321102]
[1753819517914,0.365226,117440.0,117430.0,1.2321102]
[1753819518216,0.1949,117440.0,117430.0,1.2321102]
[1753819518918,0.12701,117450.0,117440.0,0.535656]
[1753819519119,0.2201215,117450.0,117440.0,0.535656]
[1753819519510,0.4400715,117450.0,117440.0,0.535656]
[1753819520306,0.4400715,117450.0,117440.0,1.230336]
[1753819520514,0.4410715,117450.0,117440.0,1.230336]
[1753819520709,0.4430715,117450.0,117440.0,1.230336]
[1753819521214,0.3682115,117450.0,117440.0,1.230336]
[1753819521414,0.2231215,117450.0,117440.0,1.230336]
[1753819521822,0.2231215,117450.0,117440.0,0.535656]